[Event "29. Klatovy C 2023"]
[Site "Klatovy"]
[Date "2023.07.03"]
[Round "3.5"]
[White "Turner, Radek"]
[Black "Cecil, Pavel"]
[Result "1-0"]
[ECO "A14"]
[WhiteElo "1991"]
[BlackElo "1845"]
[PlyCount "89"]
[EventDate "2023.07.01"]
[EventType "swiss"]
[EventRounds "9"]
[EventCountry "CZE"]
[TimeControl "120+30"]

1. c4 {[%emt 0:00:08]} e6 {[%emt 0:00:20]} 2. g3 {[%emt 0:00:09]} Nf6 {[%emt 0:00:21]} 3. Bg2 {[%emt 0:00:18]} d5 {[%emt 0:00:16]} 4. Nf3 {[%emt 0:00:07]} Be7 {[%emt 0:00:42]} 5. O-O {[%emt 0:00:09]} O-O {[%emt 0:00:54]} 6. b3 {[%emt 0:07:19]} b6 {[%emt 0:00:26]} 7. Bb2 {[%emt 0:00:41]} Bb7 {[%emt 0:00:17]} 8. e3 {[%emt 0:00:33]} Nbd7 {[%emt 0:01:44]} 9. Qe2 {[%emt 0:02:30]} Re8 {[%emt 0:01:55]} 10. d3 {[%emt 0:00:24]} c6 {[%emt 0:01:31]} 11. Nbd2 {[%emt 0:00:35]} Qc7 {[%emt 0:01:14]} 12. Rfc1 {[%emt 0:03:07]} a5 {[%emt 0:04:49]} 13. a4 {[%emt 0:07:46]} Rad8 {[%emt 0:06:04]} 14. cxd5 {[%emt 0:06:42]} exd5 {[%emt 0:17:15]} 15. d4 {[%emt 0:02:25]} Bb4 {[%emt 0:10:22]} 16. Bc3 {[%emt 0:01:40]} Qd6 {[%emt 0:01:06]} 17. Bxb4 {[%emt 0:01:40]} axb4 {[%emt 0:00:53]} 18. Bh3 {[%emt 0:07:40]} Ra8 {[%emt 0:01:13]} 19. Qd1 {[%emt 0:02:37]} c5 {[%emt 0:04:32]} 20. Rc2 {[%emt 0:22:01]} Ba6 {[%emt 0:02:18]} 21. Bf1 {[%emt 0:01:50]} Bb7 {[%emt 0:01:23]} 22. Bb5 {[%emt 0:00:47]} Rec8 {[%emt 0:00:46]} 23. Rac1 {[%emt 0:04:42]} cxd4 {[%emt 0:12:29]} 24. Rxc8+ {[%emt 0:02:18]} Rxc8 {[%emt 0:00:17]} 25. Rxc8+ {[%emt 0:00:27]} Bxc8 {[%emt 0:00:02]} 26. Bxd7 {[%emt 0:03:47]} Bxd7 {[%emt 0:02:02]} 27. Nxd4 {[%emt 0:00:11]} Bh3 {[%emt 0:03:25]} 28. f3 {[%emt 0:03:49]} h5 {[%emt 0:02:28]} 29. Qc2 {[%emt 0:03:05]} Qc5 {[%emt 0:01:11]} 30. Kf2 {[%emt 0:04:07]} Kf8 {[%emt 0:00:44]} 31. Ke2 {[%emt 0:07:51]} Bc8 {[%emt 0:01:51]} 32. Nb1 {[%emt 0:04:51]} g6 {[%emt 0:02:43]} 33. Kd1 {[%emt 0:03:54]} Bf5 {[%emt 0:01:48]} 34. Nxf5 {[%emt 0:01:13]} gxf5 {[%emt 0:00:57]} 35. Qxf5 {[%emt 0:01:18]} Qc6 {[%emt 0:07:15]} 36. Nd2 {[%emt 0:00:31]} Qc3 {[%emt 0:01:40]} 37. Qf4 {[%emt 0:00:33]} Nd7 {[%emt 0:01:43]} 38. Qd6+ {[%emt 0:03:49]} Ke8 {[%emt 0:00:05]} 39. Qxd5 {[%emt 0:00:19]} Qa1+ {[%emt 0:03:37]} 40. Ke2 {[%emt 0:00:43]} Qg1 {[%emt 0:05:04]} 41. Qxh5 {[%emt 0:02:47]} Qg2+ {[%emt 0:01:54]} 42. Kd3 {[%emt 0:01:09]} Nc5+ {[%emt 0:02:07]} 43. Kc2 {[%emt 0:00:21]} Qg1 {[%emt 0:00:54]} 44. Qe5+ {[%emt 0:00:54]} Kd7 {[%emt 0:00:57]} 45. a5 {[%emt 0:00:43]} 1-0

[Event "29. Klatovy C 2023"]
[Site "Klatovy"]
[Date "2023.07.03"]
[Round "3.6"]
[White "Burgermeister, Michal"]
[Black "Baumruk, Josef"]
[Result "0-1"]
[ECO "C02"]
[WhiteElo "1748"]
[BlackElo "1947"]
[PlyCount "143"]
[EventDate "2023.07.01"]
[EventType "swiss"]
[EventRounds "9"]
[EventCountry "CZE"]
[TimeControl "120+30"]

1. e4 {[%emt 0:00:03]} e6 {[%emt 0:00:08]} 2. d4 {[%emt 0:00:08]} d5 {[%emt 0:00:04]} 3. e5 {[%emt 0:00:10]} c5 {[%emt 0:00:06]} 4. Nc3 {[%emt 0:00:07]} a6 {[%emt 0:02:01]} 5. Nf3 {[%emt 0:00:43]} Nc6 {[%emt 0:00:36]} 6. dxc5 {[%emt 0:01:14]} Bxc5 {[%emt 0:00:11]} 7. Bd3 {[%emt 0:00:17]} Nge7 {[%emt 0:02:33]} 8. O-O {[%emt 0:01:05]} Ng6 {[%emt 0:02:53]} 9. Re1 {[%emt 0:01:29]} Qc7 {[%emt 0:01:52]} 10. Qe2 {[%emt 0:05:38]} Nd4 {[%emt 0:05:18]} 11. Nxd4 {[%emt 0:03:45]} Bxd4 {[%emt 0:00:07]} 12. Bxg6 {[%emt 0:04:26]} hxg6 {[%emt 0:00:50]} 13. Bd2 {[%emt 0:09:53]} Bd7 {[%emt 0:05:39]} 14. a4 {[%emt 0:02:15]} Rh5 {[%emt 0:07:03]} 15. g3 {[%emt 0:10:01]} Rxe5 {[%emt 0:08:18]} 16. Qg4 {[%emt 0:08:56]} Qc4 {[%emt 0:09:32]} 17. Qh3 {[%emt 0:07:58]} Rh5 {[%emt 0:01:01]} 18. Qf1 {[%emt 0:11:51]} Qxf1+ {[%emt 0:01:43]} 19. Rxf1 {[%emt 0:02:08]} Bc6 {[%emt 0:00:45]} 20. Nd1 {[%emt 0:07:28]} Kd7 {[%emt 0:02:52]} 21. c3 {[%emt 0:01:55]} Bf6 {[%emt 0:02:44]} 22. f4 {[%emt 0:05:16]} Rah8 {[%emt 0:02:27]} 23. Rf2 {[%emt 0:02:14]} d4 {[%emt 0:02:06]} 24. cxd4 {[%emt 0:07:15]} Bxd4 {[%emt 0:02:16]} 25. Be3 {[%emt 0:00:09]} Bxe3 {[%emt 0:01:35]} 26. Nxe3 {[%emt 0:01:13]} Ke7 {[%emt 0:01:33]} 27. Nc4 {[%emt 0:06:16]} Rh3 {[%emt 0:01:22]} 28. Ra3 {[%emt 0:04:00]} Rd8 {[%emt 0:01:27]} 29. Rd2 {[%emt 0:02:34]} Rhh8 {[%emt 0:04:28]} 30. Rxd8 {[%emt 0:03:26]} Rxd8 {[%emt 0:00:09]} 31. Kf2 {[%emt 0:01:29]} Rd4 {[%emt 0:03:50]} 32. Ne5 {[%emt 0:03:04]} Rd2+ {[%emt 0:01:27]} 33. Ke3 {[%emt 0:00:15]} Rxb2 {[%emt 0:00:33]} 34. Rc3 {[%emt 0:01:49]} a5 {[%emt 0:13:21]} 35. Nxc6+ {[%emt 0:02:18]} bxc6 {[%emt 0:00:05]} 36. Rxc6 {[%emt 0:00:06]} Rb4 {[%emt 0:00:09]} 37. Rc7+ {[%emt 0:00:35]} Kf6 {[%emt 0:00:52]} 38. h4 {[%emt 0:01:04]} Rxa4 {[%emt 0:04:26]} 39. g4 {[%emt 0:00:29]} e5 {[%emt 0:02:03]} 40. fxe5+ {[%emt 0:02:56]} Kxe5 {[%emt 0:02:03]} 41. Rc5+ {[%emt 0:02:02]} Ke6 {[%emt 0:02:48]} 42. Kf3 {[%emt 0:00:36]} f5 {[%emt 0:04:26]} 43. Rc6+ {[%emt 0:00:45]} Ke5 {[%emt 0:00:23]} 44. Rxg6 {[%emt 0:00:52]} Rxg4 {[%emt 0:00:11]} 45. Ra6 {[%emt 0:00:35]} a4 {[%emt 0:01:22]} 46. Ra5+ {[%emt 0:00:09]} Kf6 {[%emt 0:00:19]} 47. Ra6+ {[%emt 0:00:17]} Kf7 {[%emt 0:00:36]} 48. h5 {[%emt 0:00:58]} Rh4 {[%emt 0:06:24]} 49. Kg3 {[%emt 0:01:48]} Rxh5 {[%emt 0:00:23]} 50. Rxa4 {[%emt 0:00:04]} Kf6 {[%emt 0:00:37]} 51. Ra6+ {[%emt 0:00:11]} Kg5 {[%emt 0:00:12]} 52. Ra7 {[%emt 0:00:36]} g6 {[%emt 0:00:08]} 53. Ra5 {[%emt 0:00:45]} Rh1 {[%emt 0:00:20]} 54. Rb5 {[%emt 0:00:17]} Ra1 {[%emt 0:00:13]} 55. Rb3 {[%emt 0:00:20]} Ra4 {[%emt 0:00:47]} 56. Rc3 {[%emt 0:00:17]} Rh4 {[%emt 0:01:19]} 57. Rc5 {[%emt 0:00:20]} Re4 {[%emt 0:01:00]} 58. Kf3 {[%emt 0:00:20]} Rb4 {[%emt 0:00:22]} 59. Rc3 {[%emt 0:00:13]} Rh4 {[%emt 0:01:14]} 60. Rc5 {[%emt 0:00:09]} Rh3+ {[%emt 0:00:19]} 61. Kg2 {[%emt 0:00:12]} Rd3 {[%emt 0:00:45]} 62. Rc4 {[%emt 0:00:26]} f4 {[%emt 0:00:13]} 63. Rc6 {[%emt 0:00:23]} Kf5 {[%emt 0:00:23]} 64. Rc5+ {[%emt 0:00:19]} Kg4 {[%emt 0:00:10]} 65. Rc2 {[%emt 0:00:24]} g5 {[%emt 0:00:23]} 66. Ra2 {[%emt 0:00:11]} Re3 {[%emt 0:00:59]} 67. Ra4 {[%emt 0:00:15]} Re2+ {[%emt 0:00:25]} 68. Kf1 {[%emt 0:00:12]} Rb2 {[%emt 0:00:17]} 69. Ra3 {[%emt 0:00:29]} f3 {[%emt 0:00:25]} 70. Ra4+ {[%emt 0:00:49]} Kg3 {[%emt 0:00:11]} 71. Ra1 {[%emt 0:00:06]} Rh2 {[%emt 0:00:18]} 72. Ke1 {[%emt 0:02:24]} 0-1

[Event "29. Klatovy C 2023"]
[Site "Klatovy"]
[Date "2023.07.03"]
[Round "3.7"]
[White "Plasek, Zdenek"]
[Black "Ondrejat, Miroslav"]
[Result "1-0"]
[ECO "E68"]
[WhiteElo "1914"]
[BlackElo "1834"]
[PlyCount "55"]
[EventDate "2023.07.01"]
[EventType "swiss"]
[EventRounds "9"]
[EventCountry "CZE"]
[TimeControl "120+30"]

1. Nf3 {[%emt 0:10:28]} Nf6 {[%emt 0:00:43]} 2. g3 {[%emt 0:00:09]} g6 {[%emt 0:00:32]} 3. Bg2 {[%emt 0:00:07]} Bg7 {[%emt 0:00:01]} 4. O-O {[%emt 0:00:10]} O-O {[%emt 0:00:02]} 5. d4 {[%emt 0:00:14]} d6 {[%emt 0:03:04]} 6. c4 {[%emt 0:00:10]} Nbd7 {[%emt 0:00:26]} 7. Nc3 {[%emt 0:00:11]} e5 {[%emt 0:00:18]} 8. e4 {[%emt 0:00:15]} a5 {[%emt 0:01:16]} 9. h3 {[%emt 0:00:28]} exd4 {[%emt 0:03:38]} 10. Nxd4 {[%emt 0:00:03]} Nc5 {[%emt 0:00:11]} 11. Re1 {[%emt 0:02:07]} Re8 {[%emt 0:03:19]} 12. Nc2 {[%emt 0:08:24]} Be6 {[%emt 0:06:55]} 13. b3 {[%emt 0:01:26]} Qd7 {[%emt 0:00:18]} 14. h4 {[%emt 0:02:20]} Ng4 {[%emt 0:11:47]} 15. Nd4 {[%emt 0:05:16]} Ne5 {[%emt 0:04:43]} 16. Be3 {[%emt 0:03:32]} Bg4 {[%emt 0:12:05]} 17. f3 {[%emt 0:09:50]} Bh3 {[%emt 0:00:35]} 18. Kh2 {[%emt 0:05:12]} Bxg2 {[%emt 0:00:07]} 19. Kxg2 {[%emt 0:00:00]} c6 {[%emt 0:07:15]} 20. Nde2 {[%emt 0:05:47]} Qe7 {[%emt 0:03:45]} 21. Qc2 {[%emt 0:03:02]} Nxf3 {[%emt 0:16:40]} 22. Kxf3 {[%emt 0:00:42]} Nxe4 {[%emt 0:00:45]} 23. Qxe4 {[%emt 0:01:08]} Qd7 {[%emt 0:08:54]} 24. Qd3 {[%emt 0:04:41]} h5 {[%emt 0:01:01]} 25. Kg2 {[%emt 0:03:52]} Qg4 {[%emt 0:00:45]} 26. Rad1 {[%emt 0:02:12]} Re7 {[%emt 0:02:11]} 27. Bd2 {[%emt 0:04:29]} Rae8 {[%emt 0:00:51]} 28. Nf4 {[%emt 0:08:21]} 1-0

[Event "29. Klatovy C 2023"]
[Site "Klatovy"]
[Date "2023.07.03"]
[Round "3.8"]
[White "Zednik, Zdenek"]
[Black "Danko, Jiri"]
[Result "1/2-1/2"]
[ECO "A13"]
[WhiteElo "1836"]
[BlackElo "1873"]
[PlyCount "45"]
[EventDate "2023.07.01"]
[EventType "swiss"]
[EventRounds "9"]
[EventCountry "CZE"]
[TimeControl "120+30"]

1. Nf3 {[%emt 0:02:41]} Nf6 {[%emt 0:00:07]} 2. c4 {[%emt 0:00:14]} e6 {[%emt 0:00:24]} 3. b3 {[%emt 0:00:29]} d5 {[%emt 0:00:43]} 4. Bb2 {[%emt 0:00:12]} Be7 {[%emt 0:00:28]} 5. e3 {[%emt 0:00:24]} O-O {[%emt 0:00:16]} 6. Be2 {[%emt 0:00:12]} b6 {[%emt 0:00:31]} 7. cxd5 {[%emt 0:00:37]} exd5 {[%emt 0:02:32]} 8. O-O {[%emt 0:00:25]} Bb7 {[%emt 0:00:30]} 9. d3 {[%emt 0:00:56]} Nbd7 {[%emt 0:00:21]} 10. Nbd2 {[%emt 0:00:29]} c5 {[%emt 0:00:39]} 11. Rc1 {[%emt 0:00:18]} Rc8 {[%emt 0:01:58]} 12. d4 {[%emt 0:02:32]} Re8 {[%emt 0:10:20]} 13. Rc2 {[%emt 0:01:17]} Bd6 {[%emt 0:01:47]} 14. Qa1 {[%emt 0:07:20]} Qe7 {[%emt 0:07:42]} 15. Rfc1 {[%emt 0:14:24]} a6 {[%emt 0:05:45]} 16. Nf1 {[%emt 0:00:32]} h6 {[%emt 0:15:01]} 17. Ng3 {[%emt 0:00:41]} Qe6 {[%emt 0:00:47]} 18. dxc5 {[%emt 0:04:31]} bxc5 {[%emt 0:01:46]} 19. Bd3 {[%emt 0:01:00]} g6 {[%emt 0:10:28]} 20. Re1 {[%emt 0:19:52]} Ne4 {[%emt 0:21:27]} 21. Nxe4 {[%emt 0:06:19]} dxe4 {[%emt 0:00:11]} 22. Bc4 {[%emt 0:00:26]} Qg4 {[%emt 0:18:04]} 23. h3 {[%emt 0:00:00]} 1/2-1/2

[Event "29. Klatovy C 2023"]
[Site "Klatovy"]
[Date "2023.07.04"]
[Round "4.1"]
[White "Sedlak, Ludek"]
[Black "Pribyl, Josef"]
[Result "1/2-1/2"]
[ECO "C41"]
[WhiteElo "1885"]
[BlackElo "2230"]
[PlyCount "142"]
[EventDate "2023.07.01"]
[EventType "swiss"]
[EventRounds "9"]
[EventCountry "CZE"]
[TimeControl "120+30"]

1. e4 {[%emt 0:00:08]} Nf6 {[%emt 0:00:02]} 2. Nc3 {[%emt 0:00:18]} d6 {[%emt 0:00:44]} 3. d4 {[%emt 0:00:17]} e5 {[%emt 0:00:07]} 4. Nf3 {[%emt 0:05:34]} Nbd7 {[%emt 0:00:01]} 5. Bc4 {[%emt 0:01:07]} Be7 {[%emt 0:00:02]} 6. dxe5 {[%emt 0:06:53]} dxe5 {[%emt 0:00:10]} 7. Ng5 {[%emt 0:03:28]} O-O {[%emt 0:00:14]} 8. Bxf7+ {[%emt 0:00:37]} Rxf7 {[%emt 0:00:08]} 9. Ne6 {[%emt 0:00:07]} Qe8 {[%emt 0:00:16]} 10. Nxc7 {[%emt 0:00:07]} Qd8 {[%emt 0:00:04]} 11. Nxa8 {[%emt 0:00:26]} b6 {[%emt 0:01:22]} 12. Nd5 {[%emt 0:02:49]} Bc5 {[%emt 0:03:08]} 13. Be3 {[%emt 0:12:34]} Bxe3 {[%emt 0:00:57]} 14. Nxe3 {[%emt 0:06:46]} Ba6 {[%emt 0:01:45]} 15. c4 {[%emt 0:06:58]} Qxa8 {[%emt 0:01:26]} 16. Qc2 {[%emt 0:05:56]} Qxe4 {[%emt 0:24:41]} 17. Qxe4 {[%emt 0:01:26]} Nxe4 {[%emt 0:00:03]} 18. f3 {[%emt 0:00:15]} Nec5 {[%emt 0:08:17]} 19. O-O-O {[%emt 0:02:14]} Bb7 {[%emt 0:05:07]} 20. b4 {[%emt 0:08:54]} Ne6 {[%emt 0:03:27]} 21. Nd5 {[%emt 0:01:04]} Nd4 {[%emt 0:02:35]} 22. Nc3 {[%emt 0:01:03]} a6 {[%emt 0:06:15]} 23. Rhe1 {[%emt 0:00:51]} Kf8 {[%emt 0:03:59]} 24. Ne4 {[%emt 0:00:17]} Re7 {[%emt 0:12:07]} 25. Kb2 {[%emt 0:09:01]} Re6 {[%emt 0:05:34]} 26. f4 {[%emt 0:05:04]} Bxe4 {[%emt 0:03:02]} 27. Rxe4 {[%emt 0:00:09]} Ke7 {[%emt 0:01:04]} 28. Kc3 {[%emt 0:04:14]} Nc6 {[%emt 0:08:03]} 29. fxe5 {[%emt 0:02:19]} Ncxe5 {[%emt 0:00:46]} 30. Rde1 {[%emt 0:00:28]} Kf7 {[%emt 0:01:11]} 31. R1e2 {[%emt 0:10:13]} h5 {[%emt 0:00:40]} 32. g3 {[%emt 0:03:36]} g5 {[%emt 0:00:27]} 33. h3 {[%emt 0:00:23]} Kf6 {[%emt 0:01:23]} 34. Rf2+ {[%emt 0:08:35]} Kg6 {[%emt 0:00:50]} 35. Rfe2 {[%emt 0:03:18]} Kf5 {[%emt 0:00:12]} 36. g4+ {[%emt 0:00:17]} Kg6 {[%emt 0:00:38]} 37. c5 {[%emt 0:05:15]} bxc5 {[%emt 0:02:40]} 38. bxc5 {[%emt 0:00:12]} h4 {[%emt 0:00:24]} 39. Kd4 {[%emt 0:01:36]} Nf3+ {[%emt 0:04:59]} 40. Kd5 {[%emt 0:00:16]} Rf6 {[%emt 0:01:00]} 41. Re6 {[%emt 0:02:22]} Ng1 {[%emt 0:01:00]} 42. R2e3 {[%emt 0:00:18]} Nxh3 {[%emt 0:00:44]} 43. Rxh3 {[%emt 0:00:25]} Rxe6 {[%emt 0:00:08]} 44. Kxe6 {[%emt 0:00:14]} Nxc5+ {[%emt 0:00:03]} 45. Kd5 {[%emt 0:00:24]} Nd7 {[%emt 0:00:02]} 46. Ke4 {[%emt 0:03:27]} Nf6+ {[%emt 0:00:34]} 47. Kf3 {[%emt 0:00:16]} Kf7 {[%emt 0:00:11]} 48. Rh2 {[%emt 0:01:17]} Ke6 {[%emt 0:00:02]} 49. Rb2 {[%emt 0:03:12]} Nd7 {[%emt 0:00:08]} 50. Kg2 {[%emt 0:01:27]} Kd5 {[%emt 0:00:30]} 51. Rd2+ {[%emt 0:00:31]} Kc6 {[%emt 0:00:05]} 52. Rf2 {[%emt 0:01:33]} Ne5 {[%emt 0:02:53]} 53. Kh3 {[%emt 0:00:13]} Nd3 {[%emt 0:00:48]} 54. Rf5 {[%emt 0:00:57]} Nf4+ {[%emt 0:00:20]} 55. Kh2 {[%emt 0:00:07]} Ne6 {[%emt 0:00:07]} 56. Rf6 {[%emt 0:00:38]} Kd5 {[%emt 0:00:23]} 57. Rf5+ {[%emt 0:00:27]} Kd4 {[%emt 0:02:07]} 58. Kg2 {[%emt 0:00:41]} Nf4+ {[%emt 0:00:34]} 59. Kf3 {[%emt 0:00:20]} Ne6 {[%emt 0:00:29]} 60. Rf6 {[%emt 0:00:25]} Nc5 {[%emt 0:00:20]} 61. Rg6 {[%emt 0:00:47]} Nd3 {[%emt 0:05:55]} 62. Rxg5 {[%emt 0:00:20]} Ne5+ {[%emt 0:00:16]} 63. Kg2 {[%emt 0:00:53]} a5 {[%emt 0:00:14]} 64. Kh3 {[%emt 0:02:51]} a4 {[%emt 0:00:02]} 65. Kxh4 {[%emt 0:01:02]} Nf3+ {[%emt 0:00:08]} 66. Kh5 {[%emt 0:00:00]} Nxg5 {[%emt 0:00:13]} 67. Kxg5 {[%emt 0:00:01]} a3 {[%emt 0:00:15]} 68. Kf5 {[%emt 0:00:04]} Kc3 {[%emt 0:00:11]} 69. g5 {[%emt 0:00:04]} Kb2 {[%emt 0:00:05]} 70. g6 {[%emt 0:00:03]} Kxa2 {[%emt 0:00:18]} 71. g7 {[%emt 0:00:00]} Kb2 {[%emt 0:00:28]} 1/2-1/2

[Event "29. Klatovy C 2023"]
[Site "Klatovy"]
[Date "2023.07.04"]
[Round "4.2"]
[White "Chalus, Karel"]
[Black "Plasek, Zdenek"]
[Result "1-0"]
[ECO "B85"]
[WhiteElo "1975"]
[BlackElo "1914"]
[PlyCount "81"]
[EventDate "2023.07.01"]
[EventType "swiss"]
[EventRounds "9"]
[EventCountry "CZE"]
[TimeControl "120+30"]

1. e4 {[%emt 0:01:38]} c5 {[%emt 0:09:00]} 2. Nf3 {[%emt 0:00:07]} d6 {[%emt 0:00:08]} 3. d4 {[%emt 0:00:06]} cxd4 {[%emt 0:00:02]} 4. Nxd4 {[%emt 0:00:06]} Nf6 {[%emt 0:00:07]} 5. Nc3 {[%emt 0:00:05]} a6 {[%emt 0:00:05]} 6. Be2 {[%emt 0:00:08]} e6 {[%emt 0:00:07]} 7. O-O {[%emt 0:00:37]} Be7 {[%emt 0:00:07]} 8. f4 {[%emt 0:01:02]} Qc7 {[%emt 0:01:03]} 9. a4 {[%emt 0:04:17]} O-O {[%emt 0:00:12]} 10. Bf3 {[%emt 0:03:44]} Nc6 {[%emt 0:01:17]} 11. Be3 {[%emt 0:04:16]} Bd7 {[%emt 0:06:34]} 12. Nde2 {[%emt 0:07:15]} Na5 {[%emt 0:17:37]} 13. b3 {[%emt 0:17:59]} Rac8 {[%emt 0:02:24]} 14. Qe1 {[%emt 0:03:10]} Nc6 {[%emt 0:29:54]} 15. Qf2 {[%emt 0:06:51]} Nb4 {[%emt 0:01:26]} 16. Rac1 {[%emt 0:01:03]} Bc6 {[%emt 0:13:24]} 17. Bb6 {[%emt 0:19:03]} Qb8 {[%emt 0:03:04]} 18. Ng3 {[%emt 0:04:46]} Nd7 {[%emt 0:06:33]} 19. Bd4 {[%emt 0:01:44]} e5 {[%emt 0:00:50]} 20. Nf5 {[%emt 0:02:23]} Bf6 {[%emt 0:00:22]} 21. fxe5 {[%emt 0:01:29]} Nxe5 {[%emt 0:00:39]} 22. Bxe5 {[%emt 0:06:55]} dxe5 {[%emt 0:02:27]} 23. Qb6 {[%emt 0:01:02]} a5 {[%emt 0:00:51]} 24. Qxa5 {[%emt 0:02:14]} Na6 {[%emt 0:00:12]} 25. Qb6 {[%emt 0:07:57]} Bg5 {[%emt 0:02:07]} 26. Rcd1 {[%emt 0:06:20]} g6 {[%emt 0:00:31]} 27. Nd6 {[%emt 0:10:32]} Rcd8 {[%emt 0:04:44]} 28. Nc4 {[%emt 0:00:20]} Nc7 {[%emt 0:00:22]} 29. Nxe5 {[%emt 0:01:25]} Na8 {[%emt 0:00:12]} 30. Nxc6 {[%emt 0:01:52]} Nxb6 {[%emt 0:00:22]} 31. Nxb8 {[%emt 0:00:04]} Rxb8 {[%emt 0:00:01]} 32. a5 {[%emt 0:01:13]} Rbc8 {[%emt 0:00:28]} 33. Nb5 {[%emt 0:01:03]} Rc5 {[%emt 0:02:29]} 34. c4 {[%emt 0:00:39]} Nc8 {[%emt 0:00:47]} 35. Rd7 {[%emt 0:01:03]} Ne7 {[%emt 0:04:56]} 36. Rxb7 {[%emt 0:02:30]} Nc6 {[%emt 0:00:06]} 37. a6 {[%emt 0:00:26]} Ra8 {[%emt 0:00:04]} 38. a7 {[%emt 0:01:28]} Be3+ {[%emt 0:01:41]} 39. Kh1 {[%emt 0:00:06]} Rxb5 {[%emt 0:01:10]} 40. cxb5 {[%emt 0:00:43]} Rxa7 {[%emt 0:00:09]} 41. bxc6 {[%emt 0:00:18]} 1-0

[Event "29. Klatovy C 2023"]
[Site "Klatovy"]
[Date "2023.07.04"]
[Round "4.3"]
[White "Fiser, Jiri2"]
[Black "Turner, Radek"]
[Result "1/2-1/2"]
[ECO "C08"]
[WhiteElo "1784"]
[BlackElo "1991"]
[PlyCount "37"]
[EventDate "2023.07.01"]
[EventType "swiss"]
[EventRounds "9"]
[EventCountry "CZE"]
[TimeControl "120+30"]

1. e4 {[%emt 19:15:43]} e6 {[%emt 0:10:19]} 2. d4 {[%emt 0:00:02]} d5 {[%emt 0:00:09]} 3. Nd2 {[%emt 0:00:04]} a6 {[%emt 0:00:13]} 4. Ngf3 {[%emt 0:00:14]} c5 {[%emt 0:12:23]} 5. exd5 {[%emt 0:00:55]} exd5 {[%emt 0:00:08]} 6. dxc5 {[%emt 0:00:44]} Bxc5 {[%emt 0:00:11]} 7. Nb3 {[%emt 0:00:02]} Bb6 {[%emt 0:00:21]} 8. Bd3 {[%emt 0:00:09]} Nf6 {[%emt 0:00:26]} 9. O-O {[%emt 0:02:37]} O-O {[%emt 0:00:14]} 10. Bg5 {[%emt 0:00:09]} h6 {[%emt 0:01:09]} 11. Bh4 {[%emt 0:00:00]} Bg4 {[%emt 0:04:16]} 12. h3 {[%emt 0:02:22]} Bh5 {[%emt 0:02:01]} 13. g4 {[%emt 0:05:08]} Bg6 {[%emt 0:00:15]} 14. Ne5 {[%emt 0:07:42]} Bxd3 {[%emt 0:01:58]} 15. Qxd3 {[%emt 0:01:44]} Nc6 {[%emt 0:00:59]} 16. Nxc6 {[%emt 0:03:49]} bxc6 {[%emt 0:00:28]} 17. Nd4 {[%emt 0:01:05]} Bxd4 {[%emt 0:03:23]} 18. Qxd4 {[%emt 0:00:01]} g5 {[%emt 0:05:21]} 19. Bg3 {[%emt 0:01:37]} 1/2-1/2

[Event "29. Klatovy C 2023"]
[Site "Klatovy"]
[Date "2023.07.04"]
[Round "4.4"]
[White "Baumruk, Josef"]
[Black "Novotny, Jaroslav2"]
[Result "1/2-1/2"]
[ECO "B20"]
[WhiteElo "1947"]
[BlackElo "1890"]
[PlyCount "30"]
[EventDate "2023.07.01"]
[EventType "swiss"]
[EventRounds "9"]
[EventCountry "CZE"]
[TimeControl "120+30"]

1. e4 {[%emt 0:01:55]} c5 {[%emt 0:00:08]} 2. g3 {[%emt 0:00:28]} Nc6 {[%emt 0:00:09]} 3. Bg2 {[%emt 0:00:06]} Nf6 {[%emt 0:00:31]} 4. Ne2 {[%emt 0:00:24]} g6 {[%emt 0:00:32]} 5. O-O {[%emt 0:00:19]} Bg7 {[%emt 0:00:12]} 6. h3 {[%emt 0:00:35]} O-O {[%emt 0:01:11]} 7. Kh2 {[%emt 0:01:23]} d5 {[%emt 0:02:29]} 8. exd5 {[%emt 0:03:29]} Nxd5 {[%emt 0:00:13]} 9. Nbc3 {[%emt 0:00:20]} Nxc3 {[%emt 0:08:21]} 10. Nxc3 {[%emt 0:00:12]} Bd7 {[%emt 0:09:52]} 11. d3 {[%emt 0:04:25]} Rc8 {[%emt 0:03:37]} 12. Be3 {[%emt 0:01:59]} b6 {[%emt 0:00:29]} 13. Qd2 {[%emt 0:05:28]} Nd4 {[%emt 0:03:36]} 14. Rae1 {[%emt 0:04:09]} Bc6 {[%emt 0:04:09]} 15. f3 {[%emt 0:06:31]} Qd7 {[%emt 0:21:18]} 1/2-1/2

[Event "29. Klatovy C 2023"]
[Site "Klatovy"]
[Date "2023.07.04"]
[Round "4.5"]
[White "Korsa, Jindrich"]
[Black "Skopec, Lubos"]
[Result "1-0"]
[ECO "B23"]
[WhiteElo "1997"]
[BlackElo "1824"]
[PlyCount "75"]
[EventDate "2023.07.01"]
[EventType "swiss"]
[EventRounds "9"]
[EventCountry "CZE"]
[TimeControl "120+30"]

1. e4 {[%emt 0:00:01]} c5 {[%emt 0:00:11]} 2. Nc3 {[%emt 0:00:11]} Nc6 {[%emt 0:00:07]} 3. g4 {[%emt 0:00:04]} d6 {[%emt 0:03:25]} 4. Bg2 {[%emt 0:00:36]} e6 {[%emt 0:05:35]} 5. d3 {[%emt 0:00:11]} Be7 {[%emt 0:02:15]} 6. Nge2 {[%emt 0:01:50]} Nd4 {[%emt 0:07:50]} 7. Ng3 {[%emt 0:00:32]} Bd7 {[%emt 0:06:50]} 8. O-O {[%emt 0:00:27]} Bc6 {[%emt 0:02:09]} 9. f4 {[%emt 0:00:27]} Bh4 {[%emt 0:03:07]} 10. Nce2 {[%emt 0:05:18]} Ne7 {[%emt 0:09:34]} 11. c3 {[%emt 0:00:39]} Nxe2+ {[%emt 0:03:22]} 12. Qxe2 {[%emt 0:00:11]} Bxg3 {[%emt 0:00:57]} 13. hxg3 {[%emt 0:00:01]} Qd7 {[%emt 0:03:58]} 14. Be3 {[%emt 0:00:38]} Rc8 {[%emt 0:15:24]} 15. f5 {[%emt 0:01:03]} f6 {[%emt 0:12:20]} 16. g5 {[%emt 0:02:38]} exf5 {[%emt 0:01:48]} 17. gxf6 {[%emt 0:00:31]} gxf6 {[%emt 0:00:50]} 18. exf5 {[%emt 0:03:06]} Bxg2 {[%emt 0:02:12]} 19. Kxg2 {[%emt 0:00:20]} Qc6+ {[%emt 0:01:04]} 20. Kh3 {[%emt 0:03:31]} Kd7 {[%emt 0:07:17]} 21. Rae1 {[%emt 0:06:34]} Rce8 {[%emt 0:02:21]} 22. Qh5 {[%emt 0:06:43]} Kd8 {[%emt 0:08:13]} 23. Bh6 {[%emt 0:06:14]} Rhg8 {[%emt 0:03:51]} 24. c4 {[%emt 0:12:21]} Rxg3+ {[%emt 0:07:57]} 25. Kxg3 {[%emt 0:06:22]} Rg8+ {[%emt 0:00:07]} 26. Kf2 {[%emt 0:03:38]} Qg2+ {[%emt 0:01:31]} 27. Ke3 {[%emt 0:00:05]} Nd5+ {[%emt 0:08:42]} 28. cxd5 {[%emt 0:00:22]} Re8+ {[%emt 0:00:02]} 29. Kf4 {[%emt 0:04:16]} Qd2+ {[%emt 0:01:08]} 30. Kg3 {[%emt 0:01:02]} Rg8+ {[%emt 0:00:57]} 31. Kf3 {[%emt 0:04:05]} Qg2+ {[%emt 0:00:07]} 32. Ke3 {[%emt 0:04:30]} Re8+ {[%emt 0:00:07]} 33. Kf4 {[%emt 0:00:10]} Qd2+ {[%emt 0:00:17]} 34. Kf3 {[%emt 0:00:54]} Qxd3+ {[%emt 0:05:06]} 35. Kg2 {[%emt 0:01:51]} Rg8+ {[%emt 0:02:13]} 36. Kh1 {[%emt 0:00:14]} Rg3 {[%emt 0:02:58]} 37. Kh2 {[%emt 0:05:58]} Rg8 {[%emt 0:00:53]} 38. Qf3 {[%emt 0:00:43]} 1-0